bitfinex/quotes_SOLUSD_20250619
["timestamp","ask_amount","ask_price","bid_price","bid_amount"]
[1750355012741,19.25628252,145.06,145.04,6.89464975]
[1750355013252,19.25628252,145.05,145.01,6.89607613]
[1750355013653,19.25628252,145.05,145.01,43.39254898]
[1750355014034,19.25628252,145.06,145.02,19.25628252]
[1750355015953,19.25628252,145.05,145.01,43.39254898]
[1750355016743,19.25628252,145.06,145.01,24.13626646]
[1750355017051,19.25628252,145.06,145.02,19.25628252]
[1750355017940,26.0,145.09,145.02,19.25628252]
[1750355018144,19.25628252,145.06,145.02,19.25628252]
[1750355018857,19.25628252,145.05,145.01,43.39254898]
[1750355019237,19.25628252,145.06,145.01,43.39254898]
[1750355019941,26.0,145.09,145.01,43.39254898]
[1750355020143,19.25628252,145.06,145.02,19.25628252]
[1750355020339,26.0,145.09,145.03,19.25628252]
[1750355020527,45.25628252,145.08,145.04,19.25628252]
[1750355020735,45.25628252,145.08,145.03,19.25628252]
[1750355020943,19.25628252,145.08,145.04,19.25628252]
[1750355021139,19.25628252,145.08,145.01,111.83626646]
[1750355021346,19.25628252,145.08,145.04,19.25628252]
[1750355021571,26.0,145.09,145.05,19.25628252]
[1750355021572,19.25628252,145.09,145.05,19.25628252]
[1750355022143,5.12267397,145.1,145.07,19.25628252]
[1750355022373,19.25628252,145.11,145.07,19.25628252]
[1750355022868,19.25628252,145.11,145.08,6.89274882]
[1750355024648,5.12963938,145.12,145.08,6.89274882]
[1750355024867,19.25628252,145.11,145.08,6.89274882]
[1750355026688,19.25628252,145.11,145.08,94.59274882]
[1750355027650,24.39019077,145.12,145.08,113.84903134]
[1750355027960,19.25628252,145.12,145.08,113.84903134]
[1750355028171,45.25628252,145.13,145.09,19.25628252]
[1750355028389,5.13677573,145.12,145.09,87.7]
[1750355028594,19.25628252,145.12,145.09,87.7]
[1750355029703,19.25628252,145.12,145.1,6.89179875]
[1750355030882,11.23249818,145.12,145.1,6.89179875]
[1750355031204,26.0,145.13,145.09,35.35545634]
[1750355031386,5.14294392,145.12,145.09,123.05545634]
[1750355031580,37.23249818,145.13,145.09,123.05545634]
[1750355032203,38.89749818,145.14,145.1,11.23249818]
[1750355032407,37.23249818,145.14,145.1,11.23249818]
[1750355032823,26.0,145.14,145.1,11.23249818]
[1750355033116,26.0,145.14,145.11,11.23249818]
[1750355033274,26.0,145.15,145.12,6.89084895]
[1750355034282,11.23249818,145.16,145.12,6.89084895]
[1750355034801,11.23249818,145.16,145.12,35.35046951]
[1750355035487,5.14254735,145.17,145.12,35.35046951]
[1750355035681,11.23249818,145.16,145.12,35.35046951]
[1750355036184,16.37504553,145.16,145.12,35.35046951]
[1750355036386,11.23249818,145.16,145.12,35.35046951]
[1750355037699,11.23249818,145.16,145.12,24.11797133]
[1750355037910,11.23249818,145.15,145.12,24.11797133]
[1750355038509,11.23249818,145.15,145.12,111.81797133]
[1750355038710,11.23249818,145.15,145.12,94.59084895]
[1750355040829,11.23249818,145.14,145.12,94.59084895]
[1750355041024,5.14061904,145.17,145.12,111.81797133]
[1750355041212,11.23249818,145.15,145.12,111.81797133]
[1750355042132,11.23249818,145.14,145.12,94.59084895]
[1750355042831,11.23249818,145.13,145.07,87.7]
[1750355043013,11.23249818,145.09,145.06,6.89369915]
[1750355043532,26.0,145.12,145.06,6.89369915]
[1750355043533,11.23249818,145.08,145.06,6.89369915]
[1750355043728,11.23249818,145.07,145.06,6.89369915]
[1750355043933,11.23249818,145.07,145.04,6.89464975]
[1750355044117,11.23249818,145.1,145.04,24.13127412]
[1750355044445,37.23249818,145.11,145.07,11.23249818]
[1750355044650,11.23249818,145.1,145.06,11.23249818]
[1750355045911,11.23249818,145.11,145.07,24.12628386]
[1750355046327,11.23249818,145.1,145.07,24.12628386]
[1750355047040,26.0,145.13,145.07,24.12628386]
[1750355047207,11.23249818,145.12,145.07,35.35878204]
[1750355047816,11.23249818,145.12,145.05,58.60048258]
[1750355048006,11.23249818,145.12,145.07,11.23249818]
[1750355048212,11.23249818,145.11,145.07,11.23249818]
[1750355048420,11.23249818,145.1,145.06,11.23249818]
[1750355048625,11.23249818,145.09,145.05,24.12961047]
[1750355048932,11.23249818,145.09,145.05,35.36210865]
[1750355049344,5.13876338,145.12,145.05,111.82961047]
[1750355049345,11.23249818,145.08,145.05,111.82961047]
[1750355049514,11.23249818,145.06,145.05,6.89417442]
[1750355049839,11.23249818,145.06,145.02,6.8956006]
[1750355050005,11.23249818,145.05,145.02,6.8956006]
[1750355050208,11.23249818,145.04,145.02,6.8956006]
[1750355050836,11.23249818,145.03,145.02,6.8956006]
[1750355051008,26.0,145.06,145.02,6.8956006]
[1750355051009,26.0,145.05,145.02,6.8956006]
[1750355051207,11.23249818,145.03,145.02,6.8956006]
[1750355051808,11.23249818,145.03,145.0,6.89655172]
[1750355052012,1.5491,145.09,145.0,24.13793103]
[1750355052255,26.0,145.05,145.0,35.37042921]
[1750355052557,11.23249818,145.02,145.0,6.89655172]
[1750355052735,11.23249818,145.01,145.0,6.89655172]
[1750355053343,11.23249818,145.01,144.98,6.8975031]
[1750355053855,11.23249818,145.04,144.95,24.14625732]
[1750355053856,11.23249818,144.99,144.95,24.14625732]
[1750355054043,11.23249818,144.99,144.95,35.3787555]
[1750355054247,11.23249818,144.98,144.95,24.14625732]
[1750355054460,11.23249818,144.99,144.95,24.14625732]
[1750355054842,11.23249818,144.98,144.95,24.14625732]
[1750355056773,11.23249818,144.97,144.95,6.89893066]
[1750355056971,11.23249818,144.97,144.93,11.23249818]
[1750355057182,11.23249818,144.97,144.92,24.15011993]
[1750355057485,11.23249818,144.97,144.93,11.23249818]
[1750355057861,11.23249818,144.96,144.92,35.38261811]
[1750355058687,26.0,145.0,144.93,11.23249818]
[1750355058688,11.23249818,144.97,144.93,11.23249818]
[1750355059073,11.23249818,144.97,144.94,6.89940665]
[1750355059662,26.0,145.0,144.94,6.89940665]
[1750355059867,11.23249818,144.97,144.94,94.59940665]
[1750355060391,11.23249818,144.97,144.94,111.84792327]
[1750355061963,18.64964886,145.02,144.94,123.08042145]
[1750355062165,11.23249818,145.01,144.97,11.23249818]
[1750355062368,12.83479818,145.03,144.99,11.23249818]
[1750355062572,1.6023,145.03,145.0,11.23249818]
[1750355062875,7.18,145.05,145.01,11.23249818]
[1750355063069,7.18,145.05,145.0,6.89655172]
[1750355063273,18.41249818,145.05,145.0,18.1290499]
[1750355063807,26.0,145.03,144.96,6.0609]
[1750355063980,11.23249818,145.01,144.97,6.89797889]
[1750355064175,11.23249818,145.02,144.98,11.23249818]
[1750355064383,11.23249818,145.01,144.97,35.3754243]
[1750355064707,11.23249818,145.01,144.97,24.14292612]
[1750355064912,11.23249818,145.01,144.97,35.3754243]
[1750355065073,26.0,145.03,144.99,6.89702738]
[1750355065279,11.23249818,145.02,144.99,6.89702738]
[1750355067501,37.23249818,145.02,144.99,6.89702738]
[1750355067880,37.23249818,145.02,144.99,24.13959583]
[1750355068076,25.54339402,145.06,144.99,35.37209401]
[1750355068318,11.23249818,145.02,144.99,94.59702738]
[1750355069681,26.0,145.03,144.99,94.59702738]
[1750355069875,11.23249818,145.02,144.99,94.59702738]
[1750355071976,11.23249818,145.01,144.99,94.59702738]
[1750355073598,26.0,145.01,144.97,94.59751925]
[1750355073929,11.23249818,145.02,144.98,11.23249818]
[1750355074106,11.23249818,145.01,144.99,6.89702738]
[1750355075525,11.23249818,145.01,144.98,6.8975031]
[1750355075912,11.23249818,144.99,144.98,6.8975031]
[1750355076227,11.23249818,144.99,144.98,94.5975031]
[1750355076426,11.23249818,145.0,144.98,94.5975031]
[1750355076632,37.23249818,145.01,144.98,94.5975031]
[1750355076825,11.23249818,145.01,144.98,94.5975031]
[1750355077012,37.23249818,145.01,144.98,94.5975031]
[1750355077624,11.23249818,145.0,144.98,94.5975031]
[1750355078639,18.64964886,145.05,144.98,105.83000128]
[1750355078805,71.37,145.06,145.0,11.23249818]
[1750355078806,11.23249818,145.04,145.0,11.23249818]
[1750355079439,37.23249818,145.05,145.0,11.23249818]
[1750355079647,37.23249818,145.05,145.01,11.23249818]
[1750355079811,26.0,145.05,145.02,6.8956006]
[1750355080019,37.23249818,145.05,145.02,6.8956006]
[1750355080837,11.23249818,145.04,145.02,6.8956006]
[1750355081018,26.0,145.05,145.02,6.8956006]
[1750355081220,37.23249818,145.05,145.02,6.8956006]
[1750355082032,37.23249818,145.05,145.01,11.23249818]
[1750355083231,26.0,145.05,145.0,11.23249818]
[1750355083432,11.23249818,145.04,144.98,24.14126085]
[1750355083728,11.23249818,145.04,145.0,11.23249818]
[1750355083931,11.23249818,145.04,145.01,6.89607613]
[1750355084137,11.23249818,145.03,145.01,6.89607613]
[1750355084633,11.23249818,145.04,145.01,6.89607613]
[1750355087215,11.23249818,145.04,144.99,17.2415912]
[1750355087543,11.23249818,145.04,145.0,11.23249818]
[1750355088936,26.0,145.05,145.01,6.89607613]
[1750355089118,11.23249818,145.04,145.01,6.89607613]
[1750355089854,26.0,145.05,145.02,11.23249818]
[1750355090359,1.5642,145.07,145.03,11.23249818]
[1750355090655,31.13995892,145.07,145.03,98.93249818]
[1750355090894,26.0,145.07,145.03,98.93249818]
[1750355091145,26.0,145.07,145.04,6.89464975]
[1750355091359,26.0,145.07,145.04,18.12714793]
[1750355091530,11.23249818,145.09,145.05,11.23249818]
[1750355091729,18.35249818,145.1,145.06,11.23249818]
[1750355091933,5.14326967,145.09,145.06,11.23249818]
[1750355092636,44.35249818,145.1,145.06,11.23249818]
[1750355092842,5.14598961,145.09,145.06,11.23249818]
[1750355093044,44.35249818,145.1,145.07,6.89322396]
[1750355093242,5.14598903,145.09,145.07,6.89322396]
[1750355093427,44.35249818,145.1,145.07,6.89322396]
[1750355093749,33.12,145.1,145.07,6.89322396]
[1750355093922,44.35249818,145.1,145.07,6.89322396]
[1750355094660,33.12,145.1,145.07,18.12572214]
[1750355095331,44.35249818,145.1,145.07,6.89322396]
[1750355096459,33.12,145.1,145.07,18.12572214]
[1750355096838,44.35249818,145.1,145.07,6.89322396]
[1750355097453,44.35249818,145.1,145.05,17.23426102]
[1750355097655,33.12,145.1,145.07,11.23249818]
[1750355097959,33.12,145.1,145.06,11.23249818]
[1750355098260,18.35249818,145.1,145.07,11.23249818]
[1750355099246,18.35249818,145.1,145.06,11.23249818]
[1750355099637,18.35249818,145.1,145.07,6.89322396]
[1750355100458,49.37906591,145.15,145.08,11.23249818]
[1750355100459,8.5766,145.15,145.08,11.23249818]
[1750355100665,16.37076218,145.14,145.1,11.23249818]
[1750355100835,24.94736218,145.15,145.11,11.23249818]
[1750355101035,24.94736218,145.15,145.12,11.23249818]
[1750355101036,7.06,145.15,145.12,11.23249818]
[1750355101242,16.36963274,145.17,145.13,11.23249818]
[1750355101468,5.13713456,145.18,145.13,11.23249818]
[1750355101638,11.23249818,145.17,145.14,6.8898994]
[1750355101832,11.23249818,145.16,145.14,6.8898994]
[1750355102467,26.0,145.17,145.14,6.8898994]
[1750355102853,11.23249818,145.17,145.14,6.8898994]
[1750355103050,11.23249818,145.18,145.14,35.34714609]
[1750355103249,11.23249818,145.18,145.14,18.12239758]
[1750355103450,7.06,145.2,145.15,11.23249818]
[1750355103651,7.06,145.2,145.16,18.1214483]
[1750355103866,18.29249818,145.2,145.16,105.8214483]
[1750355104174,13.54959986,145.21,145.17,11.23249818]
[1750355104348,13.54959986,145.21,145.16,111.81132543]
[1750355104349,13.54959986,145.21,145.18,11.23249818]
[1750355104670,13.54959986,145.21,145.19,11.23249818]
[1750355104871,13.54959986,145.21,145.19,98.93249818]
[1750355105161,24.78209804,145.21,145.19,87.7]
[1750355105635,13.54959986,145.21,145.19,87.7]
[1750355105840,13.54959986,145.21,145.2,6.88705234]
[1750355109358,13.54959986,145.21,145.2,94.58705234]
[1750355109743,13.54959986,145.21,145.15,1.5687]
[1750355109744,24.78209804,145.21,145.12,6.4089]
[1750355109941,11.23249818,145.16,145.13,6.89037414]
[1750355110358,11.23249818,145.15,145.13,6.89037414]
[1750355111079,29.78,145.18,145.11,6.89132382]
[1750355111288,11.23249818,145.14,145.11,6.89132382]
[1750355112077,11.23249818,145.14,145.09,24.12295816]
[1750355112255,11.23249818,145.13,145.09,6.89227376]
[1750355112461,11.23249818,145.13,145.09,18.12477194]
[1750355112771,11.23249818,145.12,145.09,6.89227376]
[1750355113070,26.0,145.13,145.09,6.89227376]
[1750355113267,11.23249818,145.12,145.09,6.89227376]
[1750355113442,26.0,145.13,145.09,35.35545634]
[1750355113649,26.0,145.13,145.1,11.23249818]
[1750355113867,11.23249818,145.14,145.1,11.23249818]
[1750355114083,11.23249818,145.14,145.11,6.89132382]
[1750355114253,11.23249818,145.13,145.11,6.89132382]
[1750355115167,62.84,145.18,145.12,11.23249818]
[1750355115369,11.23249818,145.16,145.12,11.23249818]
[1750355115563,7.06,145.18,145.13,11.23249818]
[1750355115751,7.06,145.18,145.11,24.11963337]
[1750355115752,27.5069,145.2,145.16,11.23249818]
[1750355115951,12.73939818,145.2,145.16,11.23249818]
[1750355116185,12.73939818,145.2,145.11,43.40023155]
[1750355116186,11.23249818,145.19,145.15,11.23249818]
[1750355117553,1.5069,145.2,145.15,11.23249818]
[1750355117883,11.23249818,145.16,145.12,11.23249818]
[1750355118075,11.23249818,145.16,145.13,24.1163095]
[1750355118771,11.23249818,145.15,145.13,24.1163095]
[1750355118976,11.23249818,145.17,145.13,24.1163095]
[1750355119174,11.23249818,145.16,145.13,24.1163095]
[1750355120181,26.0,145.18,145.13,24.1163095]
[1750355120382,11.23249818,145.16,145.13,24.1163095]
[1750355121172,11.23249818,145.16,145.13,111.8163095]
[1750355122380,11.23249818,145.17,145.13,123.04880768]
[1750355122878,11.23249818,145.16,145.13,111.8163095]
[1750355123069,26.0,145.18,145.13,111.8163095]
[1750355123271,11.23249818,145.17,145.13,123.04880768]
[1750355123958,26.0,145.18,145.13,123.04880768]
[1750355123959,11.23249818,145.16,145.13,111.8163095]
[1750355125257,1.5069,145.2,145.14,11.23249818]
[1750355125460,11.23249818,145.19,145.15,11.23249818]
[1750355125685,11.23249818,145.19,145.16,6.88895012]
[1750355125993,11.23249818,145.19,145.16,24.11132543]
[1750355126576,1.5069,145.2,145.16,35.34382361]
[1750355126577,11.23249818,145.2,145.16,35.34382361]
[1750355126882,39.54959986,145.21,145.16,24.11132543]
[1750355126883,11.23249818,145.19,145.16,24.11132543]
[1750355128611,11.23249818,145.17,145.14,94.58968086]
[1750355128787,5.10769691,145.2,145.14,18.12217904]
[1750355129105,11.23249818,145.18,145.14,111.81442937]
[1750355129261,11.23249818,145.17,145.14,111.81442937]
[1750355129461,11.23249818,145.18,145.14,111.81442937]
[1750355129869,11.23249818,145.18,145.14,123.04692755]
[1750355131995,11.23249818,145.18,145.14,111.81442937]
[1750355132291,11.23249818,145.18,145.14,123.04692755]
[1750355132465,11.23249818,145.18,145.14,111.81442937]
[1750355133792,11.23249818,145.18,145.14,123.04692755]
[1750355135274,11.23249818,145.19,145.15,11.23249818]
[1750355135470,11.23249818,145.19,145.14,123.04692755]
[1750355135908,11.23249818,145.18,145.14,123.04692755]
[1750355136670,11.23249818,145.17,145.14,111.81442937]
[1750355137071,11.23249818,145.18,145.14,123.04692755]
[1750355137281,11.23249818,145.17,145.14,111.81442937]
[1750355138572,11.23249818,145.16,145.14,111.81442937]
[1750355138772,11.23249818,145.16,145.14,94.58968086]
[1750355139283,11.23249818,145.15,145.12,87.7]
[1750355139496,11.23249818,145.13,145.11,6.89132382]
[1750355139675,11.23249818,145.12,145.11,94.59132382]
[1750355139881,11.23249818,145.13,145.11,94.59132382]
[1750355140299,18.64964886,145.16,145.11,94.59132382]
[1750355140473,11.23249818,145.13,145.11,94.59132382]
[1750355141478,11.23249818,145.12,145.1,6.89149171]
[1750355141698,11.23249818,145.11,145.1,6.89149171]
[1750355142003,11.23249818,145.11,145.07,6.89322396]
[1750355142181,11.23249818,145.09,145.07,6.89322396]
[1750355142577,11.23249818,145.09,145.06,17.23402243]
[1750355142578,11.23249818,145.09,145.06,24.12772158]
[1750355143429,11.23249818,145.09,145.06,6.89369915]
[1750355143772,11.23249818,145.11,145.07,11.23249818]
[1750355143981,5.14178843,145.13,145.07,11.23249818]
[1750355144180,11.23249818,145.12,145.08,11.23249818]
[1750355144508,11.23249818,145.12,145.07,11.23249818]
[1750355144679,11.23249818,145.12,145.08,24.12462089]
[1750355144883,11.23249818,145.11,145.08,24.12462089]
[1750355145778,37.23249818,145.13,145.09,11.23249818]
[1750355146284,11.23249818,145.13,145.09,11.23249818]
[1750355146683,37.23249818,145.13,145.1,24.12129564]
[1750355147213,26.0,145.13,145.1,6.89179875]
[1750355147408,11.23249818,145.12,145.1,6.89179875]
[1750355148806,11.23249818,145.12,145.09,6.89227376]
[1750355149014,11.23249818,145.1,145.09,6.89227376]
[1750355149708,11.23249818,145.12,145.09,6.89227376]
[1750355150098,11.23249818,145.1,145.09,6.89227376]
[1750355150708,31.13980645,145.13,145.07,6.89322396]
[1750355150933,11.23249818,145.1,145.07,6.89322396]
[1750355153019,11.23249818,145.1,145.07,24.12628386]
[1750355153709,11.23249818,145.11,145.07,35.35878204]
[1750355154718,31.14407017,145.13,145.07,35.35878204]
[1750355154919,5.14407017,145.15,145.1,11.23249818]
[1750355155114,16.37656835,145.15,145.11,11.23249818]
[1750355155425,11.23249818,145.13,145.07,24.12628386]
[1750355155627,11.23249818,145.13,145.09,11.23249818]
[1750355156126,11.23249818,145.14,145.1,11.23249818]
[1750355156825,11.23249818,145.14,145.11,6.89132382]
[1750355157132,11.23249818,145.13,145.11,6.89132382]
[1750355158232,5.14334604,145.15,145.11,11.23249818]
[1750355158441,23.37584422,145.16,145.11,11.23249818]
[1750355159025,11.23249818,145.15,145.11,11.23249818]
[1750355159518,11.23249818,145.15,145.1,24.12123795]
[1750355159830,11.23249818,145.15,145.11,11.23249818]
[1750355160310,11.23249818,145.15,145.12,6.89084895]
[1750355160637,11.23249818,145.13,145.07,17.23201198]
[1750355160823,11.23249818,145.13,145.08,11.23249818]
[1750355161133,11.23249818,145.12,145.08,11.23249818]
[1750355161534,11.23249818,145.09,145.08,87.7]
[1750355161707,11.23249818,145.09,145.05,94.59397103]
[1750355161909,11.23249818,145.06,145.05,87.7]
[1750355162233,11.23249818,145.06,145.02,87.7]
[1750355162411,11.23249818,145.05,145.03,6.8949121]
[1750355163010,11.23249818,145.04,145.03,6.8949121]
[1750355163422,11.23249818,145.05,145.03,6.8949121]
[1750355164038,11.23249818,145.06,145.03,6.8949121]
[1750355164339,11.23249818,145.05,145.03,6.8949121]
[1750355164907,31.14537783,145.08,145.03,6.8949121]
[1750355165132,26.0,145.08,145.03,35.36522314]
[1750355165333,11.23249818,145.07,145.03,24.13272496]
[1750355165539,11.23249818,145.05,145.03,94.5949121]
[1750355167136,11.23249818,145.06,145.03,94.5949121]
[1750355167323,26.0,145.08,145.03,94.5949121]
[1750355167518,11.23249818,145.06,145.03,94.5949121]
[1750355168448,26.0,145.07,145.03,94.5949121]
[1750355168630,11.23249818,145.06,145.03,94.5949121]
[1750355169222,25.58964886,145.1,145.03,18.12741028]
[1750355169543,11.23249818,145.07,145.03,35.36522314]
[1750355171550,11.23249818,145.06,145.03,24.13272496]
[1750355174258,11.23249818,145.05,145.03,6.8949121]
[1750355174468,11.23249818,145.04,145.03,94.5949121]
[1750355174759,11.23249818,145.04,145.03,6.8949121]
[1750355174957,31.49694704,145.04,144.99,130.11704415]
[1750355175252,11.23249818,145.01,144.99,94.59682316]
[1750355175549,31.49694704,145.04,144.99,6.89682316]
[1750355175550,11.23249818,145.02,144.99,6.89682316]
[1750355176323,11.23249818,145.01,144.98,6.89728599]
[1750355176559,11.23249818,145.0,144.97,94.59781216]
[1750355176934,11.23249818,144.98,144.93,104.94960251]
[1750355177255,11.23249818,144.99,144.96,6.89845474]
[1750355177637,11.23249818,145.0,144.96,6.89845474]
[1750355178347,11.23249818,144.99,144.96,6.89845474]
[1750355179956,13.83526318,145.03,144.96,35.37708978]
[1750355179957,6.94,145.03,144.96,35.37708978]
[1750355180137,18.17249818,145.03,144.99,11.23249818]
[1750355180765,32.94,145.03,144.96,111.8445916]
[1750355181061,26.0,145.03,145.0,11.23249818]
[1750355181634,26.0,145.03,145.01,6.89607613]
[1750355182155,1.5851,145.08,145.02,11.23249818]
[1750355182334,1.5851,145.08,145.05,11.23249818]
[1750355183156,14.7454,145.12,145.07,11.23249818]
[1750355183362,8.5762,145.12,145.02,26.0]
[1750355183538,19.80869818,145.12,145.09,6.89227376]
[1750355183739,34.5762,145.12,145.09,6.89227376]
[1750355184051,45.80869818,145.12,145.09,6.89227376]
[1750355184556,11.23249818,145.11,145.09,6.89227376]
[1750355184936,34.5762,145.12,145.09,6.89227376]
[1750355185148,8.5762,145.12,145.09,6.89227376]
[1750355185354,19.80869818,145.12,145.09,6.89227376]
[1750355185556,19.80869818,145.12,145.05,24.12961047]
[1750355185557,37.23249818,145.11,145.05,24.12961047]
[1750355185861,37.23249818,145.11,145.07,11.23249818]
[1750355186333,26.0,145.11,145.08,11.23249818]
[1750355187447,37.23249818,145.11,145.07,11.23249818]
[1750355187649,37.23249818,145.11,145.08,6.89274882]
[1750355188179,5.12974371,145.13,145.09,11.23249818]
[1750355188510,37.23249818,145.13,145.09,11.23249818]
[1750355189036,37.23249818,145.13,145.08,24.12462089]
[1750355189250,37.23249818,145.13,145.09,11.23249818]
[1750355189766,37.23249818,145.13,145.1,6.89179875]
[1750355191143,26.0,145.13,145.1,6.89179875]
[1750355191353,37.23249818,145.13,145.1,6.89179875]
[1750355191870,37.23249818,145.13,145.09,11.23249818]
[1750355192255,26.0,145.13,145.09,11.23249818]
[1750355192460,37.23249818,145.13,145.09,11.23249818]
[1750355192763,26.0,145.13,145.06,146.29644283]
[1750355192962,26.0,145.13,145.1,11.23249818]
[1750355193738,26.0,145.13,145.11,6.89132382]
[1750355193965,26.0,145.13,145.11,94.59132382]
[1750355194145,12.79429818,145.15,145.11,123.05213155]
[1750355194344,38.79429818,145.15,145.11,123.05213155]
[1750355196474,27.5618,145.15,145.11,123.05213155]
[1750355196982,38.79429818,145.15,145.11,123.05213155]
[1750355197275,12.78979818,145.19,145.14,11.23249818]
[1750355197461,38.78979818,145.19,145.14,11.23249818]
[1750355197971,38.78979818,145.19,145.11,157.50875066]
[1750355198173,11.23249818,145.16,145.12,11.23249818]
[1750355198770,11.23249818,145.16,145.13,6.89037414]
[1750355199350,11.23249818,145.14,145.13,6.89037414]
[1750355199548,11.23249818,145.14,145.12,6.89067501]
[1750355200651,26.0,145.16,145.12,6.89067501]
[1750355200870,11.23249818,145.14,145.12,6.89067501]
[1750355201079,26.0,145.16,145.12,24.11779739]
[1750355201277,44.64964886,145.18,145.12,35.35029557]
[1750355201484,11.23249818,145.17,145.12,111.81779739]
[1750355201985,11.23249818,145.17,145.13,11.23249818]
[1750355202480,11.23249818,145.14,145.12,111.81779739]
[1750355202909,11.23249818,145.15,145.12,111.81779739]
[1750355204055,18.64964886,145.17,145.12,111.81779739]
[1750355204358,11.23249818,145.15,145.12,111.81779739]
[1750355205377,26.0,145.18,145.13,11.23249818]
[1750355205687,11.23249818,145.18,145.14,11.23249818]
[1750355205985,1.5573,145.19,145.14,11.23249818]
[1750355205986,12.78979818,145.19,145.15,11.23249818]
[1750355206183,11.23249818,145.19,145.15,98.93249818]
[1750355206379,39.54959986,145.21,145.16,11.23249818]
[1750355206380,11.23249818,145.2,145.16,11.23249818]
[1750355207085,13.54959986,145.21,145.17,24.10966453]
[1750355207283,34.0021,145.23,145.17,24.10966453]
[1750355207284,11.23249818,145.2,145.17,24.10966453]
[1750355209274,34.0021,145.23,145.17,24.10966453]
[1750355209479,11.23249818,145.2,145.17,111.80966453]
[1750355210693,11.23249818,145.21,145.17,111.80966453]
[1750355210891,1.5725,145.23,145.2,11.23249818]
[1750355211189,11.23249818,145.24,145.21,6.88657805]
[1750355211383,11.23249818,145.24,145.21,24.10302319]
[1750355211769,11.23249818,145.25,145.21,24.10302319]
[1750355212187,33.7652,145.27,145.21,24.10302319]
[1750355212388,11.23249818,145.25,145.21,111.80302319]
[1750355212597,33.7652,145.27,145.21,111.80302319]
[1750355212894,11.23249818,145.25,145.21,111.80302319]
[1750355213392,11.23249818,145.26,145.22,11.23249818]
[1750355213691,11.23249818,145.26,145.22,98.93249818]
[1750355214589,11.23249818,145.26,145.22,87.7]
[1750355214889,27.6429,145.27,145.22,87.7]
[1750355215297,11.23249818,145.26,145.23,6.88562969]
[1750355215497,27.6429,145.27,145.23,6.88562969]
[1750355215498,26.0,145.27,145.23,6.88562969]
[1750355215678,37.23249818,145.27,145.23,24.09970391]
[1750355216283,26.0,145.27,145.23,6.88562969]
[1750355216681,11.23249818,145.24,145.23,6.88562969]
[1750355217613,26.0,145.27,145.23,6.88562969]
[1750355217907,11.23249818,145.24,145.23,6.88562969]
[1750355219708,26.0,145.27,145.23,6.88562969]
[1750355220003,67.45,145.29,145.23,111.79970391]
[1750355220211,11.23249818,145.24,145.2,6.88695905]
[1750355220377,26.0,145.22,145.2,6.88695905]
[1750355220804,37.23249818,145.25,145.21,11.23249818]
[1750355221210,11.23249818,145.25,145.21,11.23249818]
[1750355221408,11.23249818,145.26,145.22,11.23249818]
[1750355221607,46.30884886,145.29,145.22,11.23249818]
[1750355221788,11.23249818,145.26,145.23,6.88562969]
[1750355222894,46.30884886,145.29,145.23,6.88562969]
[1750355223097,11.23249818,145.26,145.23,6.88562969]
[1750355223994,11.23249818,145.25,145.23,6.88562969]
[1750355224197,11.23249818,145.26,145.23,6.88562969]
[1750355224426,46.30884886,145.29,145.23,6.88562969]
[1750355224721,11.23249818,145.26,145.23,6.88562969]
[1750355225299,46.30884886,145.29,145.23,6.88562969]
[1750355225644,7.97473553,145.37,145.28,11.23249818]
[1750355225917,7.97473553,145.37,145.32,11.23249818]
[1750355225918,16.3338098,145.36,145.32,11.23249818]
[1750355226114,5.10131162,145.36,145.33,11.23249818]
[1750355226416,5.10131162,145.37,145.3,29.46]
[1750355226723,11.23249818,145.39,145.35,11.23249818]
[1750355226724,5.10131162,145.38,145.35,11.23249818]
[1750355226929,5.10131162,145.37,145.35,11.23249818]
[1750355227117,16.3338098,145.38,145.34,11.23249818]
[1750355227419,5.10131162,145.37,145.34,11.23249818]
[1750355227731,5.10131162,145.37,145.3,36.3]
[1750355227892,5.10131162,145.37,145.35,18.11244314]
[1750355228092,5.10131162,145.39,145.36,11.23249818]
[1750355228412,5.10131162,145.39,145.35,24.07980736]
[1750355228413,11.23249818,145.37,145.35,6.87994496]
[1750355228596,11.23249818,145.36,145.35,6.87994496]
[1750355228919,5.10131162,145.39,145.35,6.87994496]
[1750355229101,5.10131162,145.39,145.29,35.95003075]
[1750355229102,11.23249818,145.36,145.29,1.5361]
[1750355229302,11.23249818,145.34,145.3,11.23249818]
[1750355229918,11.23249818,145.34,145.3,35.32059177]
[1750355230116,5.10131162,145.37,145.3,35.32059177]
[1750355230314,11.23249818,145.34,145.3,35.32059177]
[1750355230899,5.10131162,145.37,145.3,35.32059177]
[1750355231099,5.10131162,145.36,145.31,11.23249818]
[1750355231407,11.23249818,145.35,145.31,11.23249818]
[1750355231799,11.23249818,145.34,145.3,11.23249818]
[1750355232705,5.10131162,145.37,145.3,11.23249818]
[1750355232905,11.23249818,145.36,145.32,11.23249818]
[1750355233124,11.23249818,145.35,145.31,11.23249818]